[Event "72nd RUS-ch Higher League 2019"]
[Site "Yaroslavl"]
[Date "2019.07.06"]
[Round "9.25"]
[White "Belozerov, Andrei"]
[Black "Eraschenkov, Denis"]
[Result "0-1"]
[ECO "C42"]
[WhiteElo "2533"]
[BlackElo "2379"]
[Annotator "ChessBase"]
[PlyCount "194"]
[EventDate "2019.06.27"]
[EventType "swiss"]
[EventCountry "RUS"]
[SourceTitle "playchess.com"]
[Source "ChessBase"]
[SourceQuality "1"]
[TimeControl "40/5400+30:1800+30"]

1. e4 {[%emt 0:00:00]} e5 {[%emt 0:00:20]} 2. Nf3 {[%emt 0:00:00]} Nf6 {[%emt 0:00:07]} 3. Nxe5 {[%emt 0:00:00]} d6 {[%emt 0:00:07]} 4. Nf3 {[%emt 0:00:00]} Nxe4 {[%emt 0:00:06]} 5. Qe2 {[%emt 0:00:00]} Qe7 {[%emt 0:00:08]} 6. d3 {[%emt 0:00:07]} Nf6 {[%emt 0:00:04]} 7. Bg5 {[%emt 0:00:04]} Nbd7 {[%emt 0:01:05]} 8. Nc3 {[%emt 0:00:20]} Qxe2+ {[%emt 0:00:15]} 9. Bxe2 {[%emt 0:00:06]} c6 {[%emt 0:16:26]} 10. O-O-O {[%emt 0:00:56]} Be7 {[%emt 0:02:16]} 11. Rde1 {[%emt 0:00:21]} O-O {[%emt 0:07:33]} 12. Bd1 {[%emt 0:00:44]} Bd8 {[%emt 0:02:28]} 13. h3 {[%emt 0:00:53]} d5 {[%emt 0:11:38]} 14. g4 {[%emt 0:06:03]} Bc7 {[%emt 0:09:03]} 15. Nd4 {[%emt 0:05:52]} Nc5 {[%emt 0:07:40]} 16. Nce2 {[%emt 0:08:49]} Ne6 {[%emt 0:09:46]} 17. Be3 {[%emt 0:03:43]} Nxd4 {[%emt 0:00:28]} 18. Nxd4 {[%emt 0:00:28]} Bd7 {[%emt 0:03:29]} 19. g5 {[%emt 0:04:30]} Ne8 {[%emt 0:00:06]} 20. Bg4 {[%emt 0:00:29]} Rd8 {[%emt 0:00:19]} 21. Nb3 {[%emt 0:01:46]} f5 {[%emt 0:08:41]} 22. Bf3 {[%emt 0:02:14]} b6 {[%emt 0:01:41]} 23. h4 {[%emt 0:00:21]} Bd6 {[%emt 0:01:12]} 24. Bd4 {[%emt 0:02:29]} Nc7 {[%emt 0:00:29]} 25. Be5 {[%emt 0:00:38]} Bxe5 {[%emt 0:00:20]} 26. Rxe5 {[%emt 0:00:02]} Rde8 {[%emt 0:00:24]} 27. Rhe1 {[%emt 0:00:22]} Rxe5 {[%emt 0:00:10]} 28. Rxe5 {[%emt 0:00:05]} Re8 {[%emt 0:00:09]} 29. Rxe8+ {[%emt 0:00:08]} Nxe8 {[%emt 0:01:41]} 30. Kd2 {[%emt 0:00:12]} Kf7 {[%emt 0:01:04]} 31. Nd4 {[%emt 0:00:42]} Ke7 {[%emt 0:01:39]} 32. b4 {[%emt 0:01:02]} Kd6 {[%emt 0:00:25]} 33. c3 {[%emt 0:01:12]} Ke5 {[%emt 0:02:20]} 34. Bd1 {[%emt 0:02:16]} Kd6 {[%emt 0:05:06]} 35. f4 {[%emt 0:03:01]} Nc7 {[%emt 0:02:26]} 36. Ba4 {[%emt 0:02:58]} g6 {[%emt 0:01:06]} 37. Bb3 {[%emt 0:02:13]} Ne6 {[%emt 0:00:42]} 38. Ne2 {[%emt 0:00:41]} c5 {[%emt 0:00:59]} 39. bxc5+ {[%emt 0:00:20]} bxc5 {[%emt 0:02:39]} 40. Ke3 {[%emt 0:00:00]} Bb5 {[%emt 0:00:00]} 41. Bc2 {[%emt 0:00:41]} a5 {[%emt 0:03:03]} 42. Bd1 {[%emt 0:00:08]} Nc7 {[%emt 0:04:43]} 43. Bb3 {[%emt 0:05:31]} Ne6 {[%emt 0:03:15]} 44. Bc2 {[%emt 0:03:58]} Nc7 {[%emt 0:01:05]} 45. Bd1 {[%emt 0:01:00]} Ne6 {[%emt 0:02:26]} 46. Bb3 {[%emt 0:00:18]} c4 {[%emt 0:07:59]} 47. dxc4 {[%emt 0:02:35]} dxc4 {[%emt 0:03:22]} 48. Bd1 {[%emt 0:01:57]} Kc5 {[%emt 0:00:32]} 49. Ng1 {[%emt 0:11:41]} Bc6 {[%emt 0:00:23]} 50. h5 {[%emt 0:02:17]} Nc7 {[%emt 0:01:07]} 51. Kd2 {[%emt 0:03:25]} Be4 {[%emt 0:02:45]} 52. hxg6 {[%emt 0:06:14]} hxg6 {[%emt 0:00:05]} 53. Ba4 {[%emt 0:00:30]} Nd5 {[%emt 0:01:18]} 54. Ne2 {[%emt 0:00:07]} Bd3 {[%emt 0:00:48]} 55. Nd4 {[%emt 0:00:49]} Nxf4 {[%emt 0:00:20]} 56. Be8 {[%emt 0:00:18]} Be4 {[%emt 0:01:45]} 57. Bf7 {[%emt 0:02:03]} Bd5 {[%emt 0:01:20]} 58. Be8 {[%emt 0:00:32]} Kd6 {[%emt 0:01:02]} 59. Ne2 {[%emt 0:02:59]} Nh3 {[%emt 0:01:21]} 60. Bxg6 {[%emt 0:00:36]} Ke5 {[%emt 0:00:10]} 61. Nd4 {[%emt 0:03:50]} f4 {[%emt 0:00:10]} 62. Be8 {[%emt 0:02:44]} Nxg5 {[%emt 0:00:07]} 63. Bg6 {[%emt 0:00:08]} Ne4+ {[%emt 0:01:45]} 64. Bxe4 {[%emt 0:00:59]} Kxe4 {[%emt 0:00:31]} 65. Ke2 {[%emt 0:00:28]} Bf7 {[%emt 0:00:29]} 66. Nc6 {[%emt 0:01:33]} Bh5+ {[%emt 0:00:53]} 67. Kf2 {[%emt 0:00:14]} a4 {[%emt 0:00:53]} 68. Nb4 {[%emt 0:01:18]} Bg4 {[%emt 0:00:43]} 69. Nc6 {[%emt 0:00:40]} Bd1 {[%emt 0:01:05]} 70. Nb4 {[%emt 0:00:42]} a3 {[%emt 0:00:37]} 71. Ke1 {[%emt 0:00:26]} Ba4 {[%emt 0:00:56]} 72. Ke2 {[%emt 0:00:19]} f3+ {[%emt 0:00:42]} 73. Kf2 {[%emt 0:02:43]} Bb3 {[%emt 0:00:16]} 74. Ke1 {[%emt 0:00:34]} Kf4 {[%emt 0:01:30]} 75. Kf2 {[%emt 0:01:07]} Kg4 {[%emt 0:00:14]} 76. Nd5 {[%emt 0:00:18]} Bxa2 {[%emt 0:00:57]} 77. Ne3+ {[%emt 0:00:17]} Kf4 {[%emt 0:00:06]} 78. Nc2 {[%emt 0:00:12]} Ke4 {[%emt 0:00:27]} 79. Nxa3 {[%emt 0:00:10]} Bb3 {[%emt 0:00:24]} 80. Nb5 {[%emt 0:03:51]} Bd1 {[%emt 0:00:10]} 81. Nc7 {[%emt 0:00:51]} Kd3 {[%emt 0:00:16]} 82. Nd5 {[%emt 0:04:52]} Be2 {[%emt 0:00:09]} 83. Ke1 {[%emt 0:00:28]} Kc2 {[%emt 0:00:07]} 84. Kf2 {[%emt 0:00:08]} Kd2 {[%emt 0:00:09]} 85. Kg3 {[%emt 0:00:11]} Ke1 {[%emt 0:01:34]} 86. Ne3 {[%emt 0:00:45]} Bd1 {[%emt 0:01:16]} 87. Ng4 {[%emt 0:03:34]} Ke2 {[%emt 0:00:50]} 88. Nf2 {[%emt 0:00:48]} Ke1 {[%emt 0:00:18]} 89. Ne4 {[%emt 0:00:57]} Ke2 {[%emt 0:00:30]} 90. Nf2 {[%emt 0:00:53]} Kd2 {[%emt 0:00:20]} 91. Kf4 {[%emt 0:00:29]} Be2 {[%emt 0:00:16]} 92. Ne4+ {[%emt 0:00:28]} Kd3 {[%emt 0:00:05]} 93. Nc5+ {[%emt 0:03:54]} Kxc3 {[%emt 0:00:06]} 94. Ke3 {[%emt 0:00:04]} Kb4 {[%emt 0:00:43]} 95. Ne4 {[%emt 0:00:24]} c3 {[%emt 0:00:08]} 96. Kd4 {[%emt 0:00:12]} c2 {[%emt 0:00:10]} 97. Nc3 {[%emt 0:00:06]} Kb3 {[%emt 0:00:12]} 0-1

[Event "72nd RUS-ch Higher League 2019"]
[Site "Yaroslavl"]
[Date "2019.07.06"]
[Round "9.26"]
[White "Drygalov, Sergey"]
[Black "Mirzaev, Aziz"]
[Result "1-0"]
[ECO "A05"]
[WhiteElo "2492"]
[BlackElo "2433"]
[Annotator "ChessBase"]
[PlyCount "81"]
[EventDate "2019.06.27"]
[EventType "swiss"]
[EventCountry "RUS"]
[SourceTitle "playchess.com"]
[Source "ChessBase"]
[SourceQuality "1"]
[TimeControl "40/5400+30:1800+30"]

1. Nf3 {[%emt 0:00:00]} Nf6 {[%emt 0:00:00]} 2. c4 {[%emt 0:00:00]} g6 {[%emt 0:00:09]} 3. Nc3 {[%emt 0:00:00]} d5 {[%emt 0:00:19]} 4. cxd5 {[%emt 0:00:00]} Nxd5 {[%emt 0:00:09]} 5. Qb3 {[%emt 0:00:00]} Nb6 {[%emt 0:05:27]} 6. d4 {[%emt 0:00:29]} Bg7 {[%emt 0:02:14]} 7. Bf4 {[%emt 0:00:15]} Be6 {[%emt 0:06:53]} 8. Qa3 {[%emt 0:02:53]} O-O {[%emt 0:03:16]} 9. e3 {[%emt 0:00:06]} Nc6 {[%emt 0:04:34]} 10. Be2 {[%emt 0:01:04]} a5 {[%emt 0:03:12]} 11. Qc5 {[%emt 0:00:36]} a4 {[%emt 0:12:57]} 12. Nb5 {[%emt 0:06:53]} Nd5 {[%emt 0:09:48]} 13. Bg3 {[%emt 0:00:16]} Ra5 {[%emt 0:07:31]} 14. Qc1 {[%emt 0:23:41]} Bg4 {[%emt 0:07:23]} 15. Na3 {[%emt 0:02:55]} Nb6 {[%emt 0:08:19]} 16. h3 {[%emt 0:06:25]} Bf5 {[%emt 0:01:00]} 17. Nb5 {[%emt 0:07:43]} Qd7 {[%emt 0:02:34]} 18. O-O {[%emt 0:05:13]} Nb4 {[%emt 0:02:46]} 19. Na3 {[%emt 0:02:03]} Nc6 {[%emt 0:06:23]} 20. Rd1 {[%emt 0:01:58]} Rc8 {[%emt 0:01:17]} 21. Qc3 {[%emt 0:06:26]} Raa8 {[%emt 0:04:28]} 22. Qd2 {[%emt 0:08:30]} Na5 {[%emt 0:02:30]} 23. Ne5 {[%emt 0:02:04]} Qe8 {[%emt 0:00:25]} 24. Rac1 {[%emt 0:04:31]} Be6 {[%emt 0:02:14]} 25. Rc5 {[%emt 0:01:09]} Bxe5 {[%emt 0:02:16]} 26. Bxe5 {[%emt 0:00:15]} Nc6 {[%emt 0:00:02]} 27. Bg3 {[%emt 0:00:36]} Bxa2 {[%emt 0:00:49]} 28. d5 {[%emt 0:00:16]} Nd7 {[%emt 0:02:52]} 29. Rcc1 {[%emt 0:05:53]} Na5 {[%emt 0:00:14]} 30. Rxc7 {[%emt 0:00:27]} Rxc7 {[%emt 0:00:28]} 31. Bxc7 {[%emt 0:00:07]} Nb3 {[%emt 0:00:46]} 32. Qb4 {[%emt 0:01:26]} Nbc5 {[%emt 0:00:55]} 33. Bg3 {[%emt 0:01:06]} Bb3 {[%emt 0:00:27]} 34. Rc1 {[%emt 0:00:26]} Rc8 {[%emt 0:00:06]} 35. Nb5 {[%emt 0:00:20]} Qf8 {[%emt 0:01:55]} 36. d6 {[%emt 0:03:55]} Na6 {[%emt 0:00:16]} 37. Rxc8 {[%emt 0:00:35]} Qxc8 {[%emt 0:00:04]} 38. Qd4 {[%emt 0:01:43]} exd6 {[%emt 0:01:13]} 39. Nxd6 {[%emt 0:00:11]} Qc2 {[%emt 0:00:32]} 40. Ne8 {[%emt 0:00:00]} Qc1+ {[%emt 0:00:00]} 41. Kh2 {[%emt 0:02:16]} 1-0

[Event "72nd RUS-ch Higher League 2019"]
[Site "Yaroslavl"]
[Date "2019.07.06"]
[Round "9.27"]
[White "Kanter, Eduard"]
[Black "Shimanov, Aleksandr"]
[Result "1/2-1/2"]
[ECO "D20"]
[WhiteElo "2392"]
[BlackElo "2615"]
[Annotator "RC"]
[PlyCount "80"]
[EventDate "2019.06.27"]
[EventType "swiss"]
[EventCountry "RUS"]
[SourceTitle "playchess.com"]
[Source "ChessBase"]
[SourceQuality "1"]
[TimeControl "40/5400+30:1800+30"]

1. d4 {[%emt 0:00:00]} d5 {[%emt 0:01:03]} 2. c4 {[%emt 0:00:00]} dxc4 {[%emt 0:01:23]} 3. e3 {[%emt 0:01:17]} e5 {[%emt 0:02:06]} 4. Bxc4 {[%emt 0:00:08]} exd4 {[%emt 0:00:17]} 5. exd4 {[%emt 0:00:40]} Bd6 {[%emt 0:00:53]} 6. Nf3 {[%emt 0:00:50]} Nf6 {[%emt 0:00:25]} 7. O-O {[%emt 0:02:36]} O-O {[%emt 0:00:49]} 8. Nc3 {[%emt 0:00:30]} Nc6 {[%emt 0:00:51]} 9. h3 {[%emt 0:04:10]} h6 {[%emt 0:00:35]} 10. Re1 {[%emt 0:05:23]} Bf5 {[%emt 0:07:18]} 11. Ne5 {[%emt 0:17:11]} Bxe5 {[%emt 0:12:19]} 12. dxe5 {[%emt 0:00:55]} Nd7 {[%emt 0:00:50]} 13. Qh5 {[%emt 0:10:34]} Bh7 {[%emt 0:37:01]} 14. Bxh6 {[%emt 0:13:34]} Ndxe5 {[%emt 0:03:26]} 15. Rxe5 {[%emt 0:13:38]} Nxe5 {[%emt 0:01:00]} 16. Qxe5 {[%emt 0:00:38]} gxh6 {[%emt 0:00:07]} 17. Nd5 {[%emt 0:01:39]} Bg6 {[%emt 0:01:00]} 18. Nf6+ {[%emt 0:03:54]} Kh8 {[%emt 0:01:18]} 19. Qc3 {[%emt 0:07:36]} c5 {[%emt 0:06:43]} 20. Nd7+ {[%emt 0:01:34]} f6 {[%emt 0:00:46]} 21. Nxf8 {[%emt 0:00:13]} Qxf8 {[%emt 0:00:04]} 22. Re1 {[%emt 0:00:13]} Rd8 {[%emt 0:02:37]} 23. Qf3 {[%emt 0:00:59]} Rd7 {[%emt 0:05:56]} 24. Qg4 {[%emt 0:03:38]} Qg7 {[%emt 0:02:50]} 25. b3 {[%emt 0:01:14]} Kh7 {[%emt 0:00:53]} 26. Re3 {[%emt 0:00:23]} Re7 {[%emt 0:04:09]} 27. Rg3 {[%emt 0:00:56]} f5 {[%emt 0:00:30]} 28. Qf4 {[%emt 0:02:13]} Qe5 {[%emt 0:01:49]} 29. Qxe5 {[%emt 0:00:44]} Rxe5 {[%emt 0:00:04]} 30. Rd3 {[%emt 0:01:41]} Re7 {[%emt 0:01:47]} 31. f4 {[%emt 0:00:45]} Kg7 {[%emt 0:00:29]} 32. Kf2 {[%emt 0:00:05]} b6 {[%emt 0:00:44]} 33. Rd6 {[%emt 0:02:45]} Be8 {[%emt 0:00:29]} 34. Be6 {[%emt 0:01:02]} Bg6 {[%emt 0:00:42]} 35. Kf3 {[%emt 0:00:56]} Rc7 {[%emt 0:01:14]} 36. g4 {[%emt 0:01:28]} fxg4+ {[%emt 0:00:09]} 37. hxg4 {[%emt 0:00:05]} b5 {[%emt 0:00:58]} 38. f5 {[%emt 0:00:10]} Be8 {[%emt 0:00:34]} 39. Rd8 {[%emt 0:00:42]} Bf7 {[%emt 0:01:39]} 40. Bxf7 {[%emt 0:00:00]} Kxf7 {[%emt 0:00:00]} 1/2-1/2

[Event "72nd RUS-ch Higher League 2019"]
[Site "Yaroslavl"]
[Date "2019.07.06"]
[Round "9.28"]
[White "Ibadov, Dashgyn"]
[Black "Bykov, Oleg"]
[Result "1-0"]
[ECO "B33"]
[WhiteElo "2298"]
[BlackElo "2401"]
[Annotator "NA"]
[PlyCount "115"]
[EventDate "2019.06.27"]
[EventType "swiss"]
[EventCountry "RUS"]
[SourceTitle "playchess.com"]
[Source "ChessBase"]
[SourceQuality "1"]
[TimeControl "40/5400+30:1800+30"]

1. e4 {[%emt 0:00:00]} c5 {[%emt 0:00:00]} 2. Nf3 {[%emt 0:00:00]} Nc6 {[%emt 0:00:00]} 3. d4 {[%emt 0:00:00]} cxd4 {[%emt 0:00:00]} 4. Nxd4 {[%emt 0:00:00]} Nf6 {[%emt 0:00:00]} 5. Nc3 {[%emt 0:00:00]} e5 {[%emt 0:00:03]} 6. Ndb5 {[%emt 0:00:00]} d6 {[%emt 0:00:05]} 7. Bg5 {[%emt 0:00:00]} a6 {[%emt 0:00:06]} 8. Na3 {[%emt 0:00:00]} b5 {[%emt 0:00:04]} 9. Nd5 {[%emt 0:00:04]} Be7 {[%emt 0:00:05]} 10. Bxf6 {[%emt 0:00:04]} Bxf6 {[%emt 0:00:05]} 11. c4 {[%emt 0:00:03]} b4 {[%emt 0:00:07]} 12. Nc2 {[%emt 0:00:02]} Rb8 {[%emt 0:00:04]} 13. b3 {[%emt 0:00:17]} O-O {[%emt 0:00:07]} 14. g3 {[%emt 0:00:04]} Be6 {[%emt 0:00:33]} 15. Bg2 {[%emt 0:00:12]} Be7 {[%emt 0:07:25]} 16. O-O {[%emt 0:00:18]} Qd7 {[%emt 0:01:37]} 17. Qd3 {[%emt 0:00:41]} Bd8 {[%emt 0:03:51]} 18. Rad1 {[%emt 0:00:49]} Qa7 {[%emt 0:07:58]} 19. Kh1 {[%emt 0:00:34]} a5 {[%emt 0:01:15]} 20. f4 {[%emt 0:00:16]} exf4 {[%emt 0:04:40]} 21. gxf4 {[%emt 0:00:18]} Ne7 {[%emt 0:23:06]} 22. f5 {[%emt 0:09:56]} Bxd5 {[%emt 0:03:15]} 23. exd5 {[%emt 0:00:10]} Kh8 {[%emt 0:09:31]} 24. f6 {[%emt 0:02:34]} gxf6 {[%emt 0:00:46]} 25. Nd4 {[%emt 0:09:31]} Bb6 {[%emt 0:04:16]} 26. Nb5 {[%emt 0:04:34]} Qd7 {[%emt 0:00:24]} 27. Rxf6 {[%emt 0:00:10]} Bc5 {[%emt 0:01:09]} 28. Bh3 {[%emt 0:03:19]} Qd8 {[%emt 0:00:15]} 29. Rdf1 {[%emt 0:00:17]} Ng6 {[%emt 0:00:47]} 30. Nd4 {[%emt 0:16:26]} Ra8 {[%emt 0:10:20]} 31. Ne2 {[%emt 0:06:08]} a4 {[%emt 0:01:58]} 32. Ng3 {[%emt 0:00:49]} axb3 {[%emt 0:00:46]} 33. axb3 {[%emt 0:00:08]} Ra1 {[%emt 0:06:33]} 34. Rxf7 {[%emt 0:04:44]} Rxf7 {[%emt 0:00:32]} 35. Rxa1 {[%emt 0:00:03]} Nf4 {[%emt 0:03:58]} 36. Qf3 {[%emt 0:00:38]} Bd4 {[%emt 0:04:10]} 37. Re1 {[%emt 0:09:28]} Rf8 {[%emt 0:06:28]} 38. Bf5 {[%emt 0:04:01]} Qg5 {[%emt 0:01:26]} 39. Rf1 {[%emt 0:13:41]} Be5 {[%emt 0:00:28]} 40. Qg4 {[%emt 0:00:00]} Qxg4 {[%emt 0:00:00]} 41. Bxg4 {[%emt 0:08:05]} Ra8 {[%emt 0:02:05]} 42. Ne4 {[%emt 0:04:36]} h5 {[%emt 0:05:51]} 43. Bf3 {[%emt 0:06:07]} Ra2 {[%emt 0:03:40]} 44. c5 {[%emt 0:02:47]} dxc5 {[%emt 0:02:15]} 45. d6 {[%emt 0:01:14]} Ne6 {[%emt 0:00:42]} 46. d7 {[%emt 0:02:12]} Rxh2+ {[%emt 0:00:51]} 47. Kg1 {[%emt 0:00:02]} Rb2 {[%emt 0:04:39]} 48. Ng5 {[%emt 0:02:16]} Nd8 {[%emt 0:00:05]} 49. Bd5 {[%emt 0:01:48]} Bd4+ {[%emt 0:12:45]} 50. Kh1 {[%emt 0:00:07]} Rf2 {[%emt 0:00:03]} 51. Re1 {[%emt 0:01:49]} Kg7 {[%emt 0:02:51]} 52. Ne6+ {[%emt 0:08:18]} Nxe6 {[%emt 0:00:09]} 53. Rxe6 {[%emt 0:00:04]} Rf8 {[%emt 0:00:07]} 54. Re7+ {[%emt 0:00:04]} Kh6 {[%emt 0:00:08]} 55. Re8 {[%emt 0:00:06]} Rf1+ {[%emt 0:00:03]} 56. Kg2 {[%emt 0:00:09]} Rf2+ {[%emt 0:00:04]} 57. Kh3 {[%emt 0:00:49]} Bf6 {[%emt 0:00:03]} 58. Re6 {[%emt 0:00:21]} 1-0

[Event "72nd RUS-ch Higher League 2019"]
[Site "Yaroslavl"]
[Date "2019.07.06"]
[Round "9.29"]
[White "Samojlov, Anton"]
[Black "Lesovoi, Evgenij"]
[Result "1/2-1/2"]
[ECO "E21"]
[WhiteElo "2350"]
[BlackElo "2366"]
[Annotator "NA"]
[PlyCount "99"]
[EventDate "2019.06.27"]
[EventType "swiss"]
[EventCountry "RUS"]
[SourceTitle "playchess.com"]
[Source "ChessBase"]
[SourceQuality "1"]
[TimeControl "40/5400+30:1800+30"]

1. d4 {[%emt 0:00:00]} Nf6 {[%emt 0:05:54]} 2. c4 {[%emt 0:00:00]} e6 {[%emt 0:00:31]} 3. Nf3 {[%emt 0:00:00]} b6 {[%emt 0:00:54]} 4. Nc3 {[%emt 0:00:00]} Bb7 {[%emt 0:00:19]} 5. Qc2 {[%emt 0:00:14]} c5 {[%emt 0:04:06]} 6. dxc5 {[%emt 0:00:35]} Bxc5 {[%emt 0:05:46]} 7. Bg5 {[%emt 0:00:18]} Nc6 {[%emt 0:02:52]} 8. e3 {[%emt 0:01:00]} h6 {[%emt 0:07:31]} 9. Bh4 {[%emt 0:00:50]} O-O {[%emt 0:01:43]} 10. Rd1 {[%emt 0:05:15]} Be7 {[%emt 0:01:57]} 11. Be2 {[%emt 0:01:38]} Rc8 {[%emt 0:00:23]} 12. O-O {[%emt 0:01:01]} Na5 {[%emt 0:00:57]} 13. Rd4 {[%emt 0:13:28]} d5 {[%emt 0:17:20]} 14. Rfd1 {[%emt 0:04:07]} Qe8 {[%emt 0:00:38]} 15. Ne5 {[%emt 0:03:32]} dxc4 {[%emt 0:02:44]} 16. Nxc4 {[%emt 0:26:04]} Nxc4 {[%emt 0:01:27]} 17. Rxc4 {[%emt 0:03:49]} Rxc4 {[%emt 0:00:15]} 18. Bxc4 {[%emt 0:00:01]} Qc6 {[%emt 0:00:15]} 19. Bf1 {[%emt 0:00:19]} b5 {[%emt 0:00:30]} 20. Qb3 {[%emt 0:08:54]} a6 {[%emt 0:00:14]} 21. a4 {[%emt 0:01:03]} b4 {[%emt 0:03:15]} 22. Ne2 {[%emt 0:00:26]} Qb6 {[%emt 0:04:21]} 23. Rc1 {[%emt 0:01:35]} e5 {[%emt 0:06:31]} 24. Ng3 {[%emt 0:10:39]} g6 {[%emt 0:03:19]} 25. Bc4 {[%emt 0:02:28]} Kg7 {[%emt 0:01:58]} 26. Bxf6+ {[%emt 0:02:43]} Bxf6 {[%emt 0:01:44]} 27. Bd5 {[%emt 0:00:15]} Bxd5 {[%emt 0:01:14]} 28. Qxd5 {[%emt 0:00:19]} Rd8 {[%emt 0:00:15]} 29. Qc4 {[%emt 0:00:14]} Be7 {[%emt 0:02:36]} 30. b3 {[%emt 0:06:58]} Qd6 {[%emt 0:01:54]} 31. h3 {[%emt 0:06:01]} a5 {[%emt 0:07:16]} 32. Nf1 {[%emt 0:01:15]} Qd5 {[%emt 0:02:45]} 33. Qc7 {[%emt 0:00:23]} Bf6 {[%emt 0:01:48]} 34. Rc4 {[%emt 0:01:00]} Rd7 {[%emt 0:09:33]} 35. Qc8 {[%emt 0:00:18]} Qd3 {[%emt 0:00:52]} 36. Rc6 {[%emt 0:00:25]} Rd8 {[%emt 0:00:24]} 37. Qc7 {[%emt 0:00:14]} Qf5 {[%emt 0:00:06]} 38. e4 {[%emt 0:00:59]} Qf4 {[%emt 0:01:06]} 39. Qxa5 {[%emt 0:00:32]} Rd4 {[%emt 0:00:49]} 40. Rc4 {[%emt 0:00:00]} Rxc4 {[%emt 0:00:00]} 41. bxc4 {[%emt 0:00:42]} Be7 {[%emt 0:01:46]} 42. Qc7 {[%emt 0:21:46]} b3 {[%emt 0:14:30]} 43. Qb6 {[%emt 0:01:34]} Bc5 {[%emt 0:00:31]} 44. Qxc5 {[%emt 0:00:11]} b2 {[%emt 0:00:05]} 45. Qb5 {[%emt 0:00:52]} Qc1 {[%emt 0:00:06]} 46. Qxe5+ {[%emt 0:00:11]} Kh7 {[%emt 0:00:06]} 47. Qf6 {[%emt 0:00:21]} b1=Q {[%emt 0:00:12]} 48. Qxf7+ {[%emt 0:00:13]} Kh8 {[%emt 0:00:05]} 49. Qf8+ {[%emt 0:02:49]} Kh7 {[%emt 0:00:06]} 50. Qf7+ {[%emt 0:00:04]} 1/2-1/2